bitfinex/quotes_BTCUSD_20250825
["timestamp","ask_amount","ask_price","bid_price","bid_amount"]
[1756112582301,0.39762259,111680.0,111650.0,0.00521]
[1756112583554,0.40657674,111680.0,111650.0,0.00521]
[1756112586262,0.00196,111660.0,111650.0,0.00521]
[1756112587634,0.00196,111660.0,111650.0,0.00621]
[1756112587997,0.40457674,111680.0,111650.0,0.00621]
[1756112588787,0.40357674,111680.0,111650.0,0.00621]
[1756112588985,0.40357674,111680.0,111650.0,0.00521]
[1756112589193,0.40557674,111680.0,111650.0,0.00521]
[1756112589612,0.40557674,111680.0,111650.0,0.00621]
[1756112590235,0.00196,111660.0,111650.0,0.00521]
[1756112591519,0.00198,111660.0,111650.0,0.00621]
[1756112591726,0.00198,111660.0,111650.0,0.001]
[1756112591944,0.00198,111660.0,111650.0,0.00611]
[1756112592373,0.00198,111660.0,111650.0,0.00711]
[1756112594088,0.40191674,111680.0,111650.0,0.96628262]
[1756112594499,0.40353674,111680.0,111660.0,0.00297]
[1756112594736,0.00198,111670.0,111650.0,0.00497]
[1756112595162,0.00198,111670.0,111650.0,0.96414262]
[1756112595371,0.00198,111670.0,111650.0,0.00497]
[1756112595806,0.00198,111670.0,111650.0,0.00297]
[1756112596654,0.00198,111670.0,111650.0,0.00297]
[1756112596919,0.00198,111670.0,111660.0,0.00214]
[1756112597322,0.00198,111670.0,111660.0,0.00511]
[1756112598175,0.00198,111670.0,111660.0,0.00297]
[1756112600000,0.18107913,111670.0,111650.0,0.00297]
[1756112600395,0.20800613,111670.0,111650.0,0.00297]
[1756112601150,0.028907,111670.0,111650.0,0.00297]
[1756112603608,0.20800729,111670.0,111650.0,0.00297]
[1756112606010,0.028907,111670.0,111650.0,0.00297]
[1756112606234,0.20800631,111670.0,111650.0,0.00297]
[1756112607206,0.028907,111670.0,111650.0,0.00297]
[1756112608827,0.180987,111670.0,111660.0,0.00214]
[1756112609033,0.028907,111670.0,111650.0,0.00297]
[1756112611682,0.20800689,111670.0,111650.0,0.00297]
[1756112612164,0.028907,111670.0,111650.0,0.00297]
[1756112614375,0.20800625,111670.0,111650.0,0.00297]
[1756112615298,0.20962625,111670.0,111650.0,0.00297]
[1756112621839,0.20962625,111670.0,111640.0,0.02993407]
[1756112621840,0.2185812,111670.0,111640.0,0.02993407]
[1756112622078,0.2185812,111670.0,111640.0,0.96219558]
[1756112623902,0.2185812,111670.0,111650.0,0.00296]
[1756112625088,0.1916542,111670.0,111650.0,0.00296]
[1756112625272,0.026927,111660.0,111650.0,0.00296]
[1756112625715,0.028897,111660.0,111650.0,0.00296]
[1756112626309,0.028897,111660.0,111650.0,0.00497]
[1756112626725,0.028897,111660.0,111650.0,0.00697]
[1756112627090,1.04963217,111660.0,111650.0,0.002]
[1756112627315,5.70167217,111660.0,111650.0,0.002]
[1756112627545,0.71568693,111660.0,111650.0,0.002]
[1756112628220,0.56364693,111660.0,111650.0,0.002]
[1756112628429,0.71768693,111660.0,111650.0,0.001]
[1756112628688,0.71868693,111660.0,111650.0,0.001]
[1756112628908,0.71868693,111660.0,111640.0,4.807e-05]
[1756112629121,0.56464693,111660.0,111640.0,0.00300807]
[1756112629338,0.53809993,111660.0,111640.0,0.00300807]
[1756112629549,0.180932,111650.0,111640.0,0.00300807]
[1756112629770,0.182902,111650.0,111640.0,0.00501807]
[1756112630308,0.36203321,111650.0,111640.0,4.807e-05]
[1756112632575,0.31203321,111650.0,111640.0,4.807e-05]
[1756112632745,0.31365321,111650.0,111640.0,4.807e-05]
[1756112633383,0.31203321,111650.0,111640.0,4.807e-05]
[1756112634312,0.028902,111650.0,111640.0,4.807e-05]
[1756112634517,0.182862,111650.0,111640.0,4.807e-05]
[1756112634873,0.182822,111650.0,111640.0,4.807e-05]
[1756112635277,0.028902,111650.0,111640.0,4.807e-05]
[1756112635470,0.182822,111650.0,111640.0,4.807e-05]
[1756112636014,0.182782,111650.0,111640.0,4.807e-05]
[1756112636236,0.15388,111650.0,111640.0,4.807e-05]
[1756112636433,0.180811,111650.0,111640.0,0.00300807]
[1756112636785,0.35994221,111650.0,111640.0,4.807e-05]
[1756112641256,0.35978221,111650.0,111640.0,4.807e-05]
[1756112645296,0.1527829,111650.0,111640.0,4.807e-05]
[1756112645705,0.35884611,111650.0,111640.0,4.807e-05]
[1756112649902,0.35884611,111650.0,111640.0,0.00298807]
[1756112650303,0.35884611,111650.0,111640.0,4.807e-05]
[1756112650512,0.69884611,111650.0,111640.0,4.807e-05]
[1756112654827,0.71286316,111650.0,111640.0,4.807e-05]
[1756112655258,0.71912725,111650.0,111640.0,4.807e-05]
[1756112655465,0.71286316,111650.0,111640.0,4.807e-05]
[1756112656330,0.71912741,111650.0,111640.0,4.807e-05]
[1756112658673,0.71286316,111650.0,111640.0,4.807e-05]
[1756112658898,0.71912707,111650.0,111640.0,4.807e-05]
[1756112659468,0.71286316,111650.0,111640.0,4.807e-05]
[1756112660207,0.7880465,111650.0,111640.0,4.807e-05]
[1756112662435,0.7920465,111650.0,111640.0,4.807e-05]
[1756112662875,0.77902945,111650.0,111640.0,4.807e-05]
[1756112663248,0.77802945,111650.0,111640.0,4.807e-05]
[1756112663859,0.78102945,111650.0,111640.0,4.807e-05]
[1756112665253,0.79847847,111650.0,111640.0,4.807e-05]
[1756112665454,5.79847847,111650.0,111640.0,4.807e-05]
[1756112666081,5.81249733,111650.0,111640.0,4.807e-05]
[1756112667734,5.65971443,111650.0,111640.0,4.807e-05]
[1756112668232,5.81259443,111650.0,111640.0,4.807e-05]
[1756112670064,5.65971443,111650.0,111640.0,4.807e-05]
[1756112670434,5.81263443,111650.0,111640.0,4.807e-05]
[1756112671384,6.24697079,111650.0,111640.0,4.807e-05]
[1756112672473,6.09405079,111650.0,111640.0,4.807e-05]
[1756112672655,6.24697079,111650.0,111640.0,4.807e-05]
[1756112673045,6.09405079,111650.0,111640.0,4.807e-05]
[1756112673206,6.24697079,111650.0,111640.0,4.807e-05]
[1756112674602,6.24697079,111650.0,111620.0,0.00339]
[1756112674603,0.35744902,111640.0,111620.0,0.00339]
[1756112674782,0.6720833,111630.0,111620.0,0.00045]
[1756112674985,5.67834664,111630.0,111620.0,0.00339]
[1756112675191,5.68193964,111630.0,111620.0,0.00339]
[1756112675387,5.68193964,111630.0,111620.0,0.00539]
[1756112675806,5.68193964,111630.0,111620.0,0.00339]
[1756112676005,5.69595994,111630.0,111620.0,0.00539]
[1756112676368,5.69595994,111630.0,111620.0,0.00339]
[1756112676821,5.69895994,111630.0,111620.0,0.00339]
[1756112677667,5.69895994,111630.0,111620.0,0.00539]
[1756112678423,5.69895994,111630.0,111620.0,0.00339]
[1756112679142,5.73886403,111630.0,111620.0,0.00339]
[1756112679978,5.73886403,111630.0,111620.0,0.00544]
[1756112681407,5.73886403,111630.0,111620.0,0.00339]
[1756112681684,5.73886403,111630.0,111620.0,0.00544]
[1756112681910,5.73886403,111630.0,111620.0,0.00339]
[1756112682326,5.73886403,111630.0,111620.0,0.00544]
[1756112682488,5.72484373,111630.0,111620.0,0.00544]
[1756112684287,5.72484373,111630.0,111620.0,0.00339]
[1756112684494,5.72516373,111630.0,111620.0,0.00339]
[1756112684695,5.72516373,111630.0,111620.0,0.00544]
[1756112685125,5.57192373,111630.0,111620.0,0.00339]
[1756112685334,5.72516373,111630.0,111620.0,0.00339]
[1756112685838,5.58594411,111630.0,111620.0,0.00339]
[1756112686025,5.73914411,111630.0,111620.0,0.00339]
[1756112686600,5.58594411,111630.0,111620.0,0.00544]
[1756112686803,5.73914411,111630.0,111620.0,0.00045]
[1756112688192,5.73914411,111630.0,111620.0,0.00367]
[1756112688598,5.55998081,111630.0,111620.0,0.00045]
[1756112688851,5.73914411,111630.0,111620.0,0.00045]
[1756112689139,5.73914411,111630.0,111620.0,0.00367]
[1756112690715,5.73914411,111630.0,111620.0,0.00045]
[1756112690930,5.76694852,111630.0,111620.0,0.00045]
[1756112691504,5.76068518,111630.0,111620.0,0.00045]
[1756112691712,5.76694222,111630.0,111620.0,0.00045]
[1756112692925,0.54698376,111620.0,111610.0,1e-08]
[1756112693071,5.95566557,111620.0,111610.0,1e-08]
[1756112693308,5.9253208,111620.0,111610.0,1e-08]
[1756112693509,5.9289128,111620.0,111610.0,1e-08]
[1756112693681,5.93358767,111620.0,111610.0,1e-08]
[1756112694070,5.93354767,111620.0,111610.0,1e-08]
[1756112694274,5.78042767,111620.0,111610.0,1e-08]
[1756112694618,5.96389244,111620.0,111610.0,1e-08]
[1756112694819,0.53664443,111610.0,111600.0,5e-05]
[1756112694991,5.69598147,111610.0,111600.0,5e-05]
[1756112695764,5.54290147,111610.0,111600.0,5e-05]
[1756112695964,5.69594147,111610.0,111600.0,0.00341386]
[1756112696184,5.54290147,111610.0,111600.0,0.00224386]
[1756112696406,5.71200589,111610.0,111600.0,0.00341386]
[1756112696843,5.71200589,111610.0,111600.0,0.00019386]
[1756112697476,5.7398103,111610.0,111600.0,0.00019386]
[1756112697910,5.7408103,111610.0,111600.0,0.00019386]
[1756112698109,5.7408103,111610.0,111600.0,0.00341386]
[1756112698375,5.5877303,111610.0,111600.0,0.00546386]
[1756112698580,5.7409303,111610.0,111600.0,0.00546386]
[1756112699081,5.7409303,111610.0,111600.0,0.00019386]
[1756112699461,5.7408903,111610.0,111600.0,0.00019386]
[1756112699672,5.7408903,111610.0,111600.0,0.00341386]
[1756112699853,5.7409303,111610.0,111600.0,0.00341386]
[1756112700576,5.7409303,111610.0,111600.0,0.00546386]
[1756112700946,5.7409303,111610.0,111600.0,0.00341386]
[1756112701184,5.7409303,111610.0,111600.0,0.00019386]
[1756112702598,5.7410103,111610.0,111600.0,0.00546386]
[1756112703503,5.7410103,111610.0,111580.0,0.0004]
[1756112703504,0.17922752,111590.0,111580.0,0.0004]
[1756112703710,0.33872456,111590.0,111580.0,0.00245]
[1756112704116,0.52821524,111580.0,111560.0,0.85394104]
[1756112704314,0.68145524,111580.0,111560.0,0.85394104]
[1756112704536,0.68145524,111580.0,111570.0,0.00205]
[1756112704872,0.68141524,111580.0,111570.0,0.00205]
[1756112705477,0.71777083,111580.0,111570.0,0.00527]
[1756112705867,0.05504515,111590.0,111570.0,0.86145178]
[1756112706080,0.04102051,111590.0,111580.0,0.85716104]
[1756112706295,0.04102051,111590.0,111580.0,0.85921104]
[1756112706517,0.36802694,111600.0,111580.0,0.00527]
[1756112706734,0.0406491,111590.0,111580.0,0.85599104]
[1756112706941,0.36802694,111600.0,111580.0,0.85599104]
[1756112707361,0.70802694,111600.0,111590.0,0.00322]
[1756112707561,0.71005694,111600.0,111590.0,0.00527]
[1756112708113,0.70802694,111600.0,111590.0,0.00527]
[1756112708760,0.55482694,111600.0,111590.0,0.00527]
[1756112709088,0.70802694,111600.0,111590.0,0.00527]
[1756112709292,0.72205015,111600.0,111590.0,0.00527]
[1756112709686,0.56885015,111600.0,111590.0,0.00532]
[1756112709883,0.72209015,111600.0,111590.0,0.00532]
[1756112711210,0.76242882,111600.0,111590.0,0.00532]
[1756112711675,0.76454882,111600.0,111590.0,0.0021]
[1756112711892,0.76751882,111600.0,111590.0,5e-05]
[1756112712744,0.75349561,111600.0,111590.0,5e-05]
[1756112714097,0.75353561,111600.0,111590.0,5e-05]
[1756112714297,0.82249561,111600.0,111590.0,5e-05]
[1756112714612,0.82245561,111600.0,111590.0,5e-05]
[1756112714785,0.82245561,111600.0,111590.0,0.00215]
[1756112714987,0.82241561,111600.0,111590.0,0.00215]
[1756112715759,0.81944561,111600.0,111590.0,0.00215]
[1756112716022,0.83643955,111600.0,111590.0,5e-05]
[1756112716258,0.83643955,111600.0,111590.0,0.00215]
[1756112716259,0.83346955,111600.0,111590.0,0.00215]
[1756112716446,0.83346955,111600.0,111590.0,0.00523]
[1756112716666,0.67814955,111600.0,111590.0,0.00523]
[1756112716876,0.83134955,111600.0,111590.0,0.00523]
[1756112717660,0.67814905,111600.0,111590.0,0.00523]
[1756112717844,0.83146905,111600.0,111590.0,0.00523]
[1756112718284,0.83150905,111600.0,111590.0,0.00523]
[1756112719385,0.83362905,111600.0,111590.0,0.00523]
[1756112720304,0.83659905,111600.0,111590.0,0.00215]
[1756112720541,0.83659905,111600.0,111590.0,5e-05]
[1756112720975,0.84285694,111600.0,111590.0,5e-05]
[1756112721193,0.84034405,111600.0,111590.0,5e-05]
[1756112721370,0.86814846,111600.0,111590.0,5e-05]
[1756112721806,0.68698405,111600.0,111590.0,5e-05]
[1756112722010,0.83769405,111600.0,111590.0,5e-05]
[1756112722218,0.84066405,111600.0,111590.0,0.00215]
[1756112722421,0.84366405,111600.0,111590.0,0.00215]
[1756112722626,0.84566405,111600.0,111590.0,5e-05]
[1756112722837,0.83164011,111600.0,111590.0,5e-05]
[1756112723249,0.82964011,111600.0,111590.0,5e-05]
[1756112723452,0.83064011,111600.0,111590.0,5e-05]
[1756112723634,0.82764011,111600.0,111590.0,5e-05]
[1756112724065,0.82864011,111600.0,111590.0,5e-05]
[1756112724264,0.67496011,111600.0,111590.0,5e-05]
[1756112724467,0.82872011,111600.0,111590.0,5e-05]
[1756112724876,0.67496011,111600.0,111590.0,5e-05]
[1756112725036,0.82872011,111600.0,111590.0,5e-05]
[1756112725256,0.82571011,111600.0,111590.0,0.00215]
[1756112725461,0.82868011,111600.0,111590.0,5e-05]
[1756112725868,0.82868011,111600.0,111590.0,0.00215]
[1756112726069,0.84270425,111600.0,111590.0,5e-05]
[1756112727226,0.18043283,111590.0,111580.0,5e-05]
[1756112727425,0.33631283,111590.0,111580.0,0.00215]
[1756112727866,0.33928283,111590.0,111580.0,0.00215]
[1756112728066,0.33631283,111590.0,111580.0,0.00215]
[1756112729353,0.33928283,111590.0,111580.0,5e-05]
[1756112729854,0.67928283,111590.0,111580.0,5e-05]
[1756112730086,0.68554695,111590.0,111580.0,5e-05]
[1756112730288,0.53178695,111590.0,111580.0,5e-05]
[1756112730684,0.68574695,111590.0,111580.0,5e-05]
[1756112731558,0.68774695,111590.0,111580.0,5e-05]
[1756112731991,0.68674695,111590.0,111580.0,5e-05]
[1756112732330,0.68774695,111590.0,111580.0,5e-05]
[1756112732601,0.53378695,111590.0,111580.0,5e-05]
[1756112732989,0.67959283,111590.0,111580.0,0.00215]
[1756112733188,0.67959283,111590.0,111580.0,0.00523]
[1756112733494,0.67959283,111590.0,111580.0,0.00215]
[1756112733697,0.68256283,111590.0,111580.0,5e-05]
[1756112734224,0.52243283,111590.0,111580.0,0.00523]
[1756112734427,0.67799283,111590.0,111580.0,0.00523]
[1756112734583,0.67803283,111590.0,111580.0,0.00523]
[1756112734784,0.52243283,111590.0,111580.0,0.00523]
[1756112734997,0.67803283,111590.0,111580.0,0.00523]
[1756112736175,0.52243283,111590.0,111580.0,0.00523]
[1756112736308,0.67799283,111590.0,111580.0,0.00523]
[1756112737028,0.67795283,111590.0,111580.0,0.00523]
[1756112738533,0.6940971,111590.0,111580.0,0.00215]
[1756112738797,0.6919771,111590.0,111580.0,0.00523]
[1756112739012,0.6940971,111590.0,111580.0,0.00523]
[1756112739249,0.6919771,111590.0,111580.0,0.00523]
[1756112739702,0.6941171,111590.0,111580.0,0.00523]
[1756112740579,0.6919771,111590.0,111580.0,0.00215]
[1756112740763,0.6919771,111590.0,111580.0,0.00528]
[1756112741216,0.6941171,111590.0,111580.0,0.00215]
[1756112741448,0.68318283,111590.0,111580.0,0.00215]
[1756112742216,0.68197752,111590.0,111580.0,0.00215]
[1756112743454,0.68197752,111590.0,111580.0,5e-05]
[1756112743655,0.52645752,111590.0,111580.0,0.00208]
[1756112743902,0.68197752,111590.0,111580.0,0.00208]
[1756112744166,0.68197752,111590.0,111580.0,0.00087469]
[1756112744700,0.69600196,111590.0,111580.0,0.00087469]
[1756112745343,0.51924359,111580.0,111570.0,0.00313]
[1756112745715,0.34,111580.0,111570.0,0.00313]
[1756112745938,0.01602444,111590.0,111570.0,0.86134178]
[1756112746148,0.51138444,111590.0,111580.0,0.85394104]
[1756112746363,0.51138444,111590.0,111580.0,0.00516]
[1756112746552,0.51038444,111590.0,111580.0,0.00516]
[1756112746897,0.51042444,111590.0,111580.0,0.85910104]
[1756112747182,0.17042444,111590.0,111580.0,0.85910104]
[1756112747417,0.17042444,111590.0,111580.0,0.00516]
[1756112747589,0.16942444,111590.0,111580.0,0.85910104]
[1756112747792,0.16942444,111590.0,111580.0,0.00516]
[1756112748304,0.16942444,111590.0,111580.0,0.85910104]
[1756112748559,0.16942444,111590.0,111580.0,0.00516]
[1756112748798,0.16942444,111590.0,111580.0,0.00616]
[1756112749462,0.35388196,111590.0,111580.0,0.001]
[1756112750258,0.35388196,111590.0,111580.0,0.00303]
[1756112751115,0.17156444,111590.0,111580.0,0.00303]
[1756112751420,0.15754,111590.0,111580.0,0.00303]
[1756112751820,0.1554,111590.0,111580.0,0.00303]
[1756112752257,0.15754,111590.0,111580.0,0.00303]
[1756112752459,0.00214,111590.0,111580.0,0.00303]
[1756112752941,0.15556,111590.0,111580.0,0.00616]
[1756112753151,0.1577,111590.0,111580.0,0.00303]
[1756112754157,0.33692752,111590.0,111580.0,0.00303]
[1756112754292,0.34001752,111590.0,111580.0,0.001]
[1756112754912,0.34001752,111590.0,111580.0,0.00303]
[1756112755118,0.34001752,111590.0,111580.0,0.001]
[1756112756396,0.68001752,111590.0,111580.0,0.001]
[1756112757249,0.69404218,111590.0,111580.0,0.001]
[1756112761200,0.68001752,111590.0,111580.0,0.001]
[1756112761365,0.17872415,111570.0,111550.0,0.85399104]
[1756112761563,0.33781415,111570.0,111550.0,0.00318]
[1756112761805,0.17560376,111560.0,111550.0,0.00318]
[1756112762009,0.18083376,111560.0,111550.0,0.00208]
[1756112762240,0.17774376,111560.0,111550.0,0.00208]
[1756112762453,0.18083376,111560.0,111550.0,0.00208]
[1756112762819,0.18083376,111560.0,111550.0,0.00256117]
[1756112763036,0.00523,111560.0,111540.0,0.60963221]
[1756112763218,0.00523,111560.0,111540.0,0.85408542]
[1756112763429,0.00523,111560.0,111540.0,0.00014438]
[1756112763641,0.1845068,111560.0,111540.0,0.85408542]
[1756112763783,0.00523,111560.0,111550.0,0.004]
[1756112763998,0.00309,111570.0,111550.0,0.004]
[1756112764223,0.33831152,111570.0,111550.0,0.00224114]
[1756112764451,0.33831152,111570.0,111550.0,0.85394104]
[1756112764663,0.33522152,111570.0,111550.0,0.85394104]
[1756112764870,0.00309,111560.0,111540.0,0.00014438]
[1756112765069,0.00309,111560.0,111540.0,0.85408542]
[1756112765270,0.00309,111560.0,111550.0,0.002]
[1756112765719,0.3441845,111570.0,111550.0,0.002]
[1756112765937,0.3440645,111570.0,111550.0,0.002]
[1756112766142,0.3440645,111570.0,111550.0,0.85594104]
[1756112766362,0.00214,111560.0,111550.0,0.85594104]
[1756112766564,0.00214,111560.0,111550.0,0.004]
[1756112767122,0.00214,111560.0,111540.0,0.85408542]
[1756112767123,0.3440645,111570.0,111540.0,0.85408542]
[1756112767299,0.3440645,111570.0,111550.0,0.003]
[1756112767506,0.38433325,111570.0,111550.0,0.004]
[1756112767723,0.38433325,111570.0,111550.0,0.85794104]
[1756112767724,0.22849325,111570.0,111550.0,0.85794104]
[1756112767977,0.38742325,111570.0,111550.0,0.004]
[1756112768208,0.38742325,111570.0,111550.0,0.001]
[1756112768391,0.38742325,111570.0,111550.0,0.85494104]
[1756112768952,0.04335875,111570.0,111550.0,0.85494104]
[1756112769340,0.37841845,111570.0,111550.0,0.85494104]
[1756112769566,0.19602875,111570.0,111560.0,0.85394104]
[1756112769775,0.38026875,111570.0,111560.0,0.85394104]
[1756112770084,0.56486894,111570.0,111550.0,0.15976]
[1756112770376,0.56486894,111570.0,111550.0,0.85394104]
[1756112770585,0.56486894,111570.0,111550.0,0.85494104]
[1756112770788,0.56167894,111570.0,111560.0,0.002]
[1756112770999,0.56167894,111570.0,111550.0,0.001]
[1756112771327,0.00319,111560.0,111550.0,0.003]
[1756112771537,0.18461572,111560.0,111550.0,0.003]
[1756112771749,0.51078335,111570.0,111550.0,0.001]
[1756112772087,0.18142572,111560.0,111550.0,0.00303]
[1756112772663,0.18142572,111560.0,111550.0,0.00203]
[1756112772875,0.00215,111560.0,111550.0,0.00203]
[1756112773082,0.66654335,111570.0,111550.0,0.00203]
[1756112773237,0.66654335,111570.0,111550.0,0.00517]
[1756112773444,0.18142572,111560.0,111550.0,0.003]
[1756112773666,0.18142572,111560.0,111550.0,0.005]
[1756112773870,0.18461572,111560.0,111550.0,0.005]
[1756112774337,0.52461572,111560.0,111550.0,0.003]
[1756112776023,0.52461572,111560.0,111550.0,0.004]
[1756112776415,0.52461572,111560.0,111550.0,0.003]
[1756112776840,0.52461572,111560.0,111550.0,0.005]
[1756112778856,0.68009572,111560.0,111550.0,0.005]
[1756112780411,0.52461572,111560.0,111550.0,0.005]
[1756112780641,0.68005572,111560.0,111550.0,0.005]
[1756112782517,0.52461572,111560.0,111550.0,0.005]
[1756112782721,0.68005572,111560.0,111550.0,0.005]
[1756112784905,0.52461572,111560.0,111550.0,0.005]
[1756112785054,0.68013572,111560.0,111550.0,0.005]
[1756112786360,5.54832992,111560.0,111550.0,0.005]
[1756112786563,5.70380992,111560.0,111550.0,0.005]
[1756112787191,5.70380992,111560.0,111550.0,0.003]
[1756112787393,0.17929179,111550.0,111540.0,0.00014438]
[1756112787570,5.18144179,111550.0,111540.0,0.00014438]
[1756112787800,0.18463179,111550.0,111540.0,0.00014438]
[1756112788121,0.19866271,111550.0,111540.0,0.00014438]
[1756112788526,0.22646712,111550.0,111540.0,0.00014438]
[1756112789984,0.22646712,111550.0,111540.0,0.00214438]
[1756112790180,0.22646712,111550.0,111540.0,0.00114438]
[1756112790800,0.22646712,111550.0,111540.0,0.00014438]
[1756112790960,0.38282712,111550.0,111540.0,0.00014438]
[1756112791362,0.37505686,111550.0,111540.0,0.00014438]
[1756112792013,0.37605686,111550.0,111540.0,0.00014438]
[1756112794307,0.71605686,111550.0,111540.0,0.00014438]
[1756112794697,0.73008811,111550.0,111540.0,0.00014438]
[1756112795979,5.73008811,111550.0,111540.0,0.00014438]
[1756112796406,5.74753713,111550.0,111540.0,0.00014438]
[1756112797457,5.7472405,111550.0,111540.0,0.00014438]
[1756112797656,5.59060098,111550.0,111540.0,0.00014438]
[1756112798090,5.74644098,111550.0,111540.0,0.00014438]
[1756112799604,5.77678575,111550.0,111540.0,0.00014438]
[1756112801231,6.22514097,111550.0,111540.0,0.00014438]
[1756112801944,6.22526097,111550.0,111540.0,0.00014438]
[1756112802258,6.21122972,111550.0,111540.0,0.00014438]
[1756112802465,0.53675689,111540.0,111530.0,0.0004]
[1756112802662,5.83341756,111540.0,111530.0,0.0004]
[1756112804199,5.83341756,111540.0,111530.0,0.0001035]
[1756112805696,5.84745145,111540.0,111530.0,0.0001035]
[1756112805943,5.84844114,111540.0,111530.0,0.0001035]
[1756112806151,5.84848114,111540.0,111530.0,0.0001035]
[1756112806352,5.85846807,111540.0,111530.0,0.0001035]
[1756112806684,5.88881284,111540.0,111530.0,0.0001035]
[1756112807276,5.88781284,111540.0,111530.0,0.0001035]
[1756112807745,5.88981284,111540.0,111530.0,0.0001035]
[1756112808043,5.88781284,111540.0,111530.0,0.0001035]
[1756112808469,5.88981284,111540.0,111530.0,1e-08]
[1756112808684,5.86046807,111540.0,111530.0,1e-08]
[1756112808904,5.89081284,111540.0,111530.0,1e-08]
[1756112809256,0.53677296,111530.0,111520.0,0.00048]
[1756112809456,5.76494332,111530.0,111520.0,0.00048]
[1756112810515,5.76594332,111530.0,111520.0,0.00048]
[1756112811148,0.53678904,111520.0,111510.0,0.0004]
[1756112811350,5.57825463,111520.0,111510.0,0.00054443]
[1756112811680,5.73461463,111520.0,111510.0,0.00054443]
[1756112812647,5.73461463,111520.0,111510.0,0.00154443]
[1756112812873,5.7649594,111520.0,111510.0,0.00154443]
[1756112813434,5.7649594,111520.0,111510.0,0.00254443]
[1756112813841,5.7649594,111520.0,111510.0,0.00154443]
[1756112814028,5.7649594,111520.0,111510.0,0.00054443]
[1756112814223,5.7659594,111520.0,111500.0,5e-05]
[1756112814440,5.7957599,111510.0,111500.0,5e-05]
[1756112814661,5.79909072,111510.0,111500.0,0.00204]
[1756112814880,5.61205548,111510.0,111500.0,0.00529]
[1756112815286,5.76973548,111510.0,111500.0,0.00529]
[1756112815494,5.77186548,111510.0,111500.0,0.00204]
[1756112815855,5.82994508,111510.0,111500.0,0.00529]
[1756112816068,5.83207508,111510.0,111500.0,0.00204]
[1756112816286,5.85166655,111510.0,111500.0,5e-05]
[1756112816499,5.88182179,111510.0,111500.0,5e-05]
[1756112816710,5.74534085,111510.0,111500.0,0.00529]
[1756112816924,5.90310085,111510.0,111500.0,0.00204]
[1756112817352,5.90816085,111510.0,111500.0,5e-05]
[1756112818178,5.93950562,111510.0,111500.0,5e-05]
[1756112819503,5.78174562,111510.0,111500.0,5e-05]
[1756112819738,5.91060085,111510.0,111500.0,5e-05]
[1756112820832,5.75140085,111510.0,111500.0,5e-05]
[1756112821059,5.91052085,111510.0,111500.0,5e-05]
[1756112821508,5.91051356,111510.0,111500.0,5e-05]
[1756112821939,5.91051303,111510.0,111500.0,5e-05]
[1756112823089,5.9408578,111510.0,111500.0,5e-05]
[1756112823299,5.91051303,111510.0,111500.0,5e-05]
[1756112824568,5.92455011,111510.0,111500.0,5e-05]
[1756112825454,5.94901754,111510.0,111500.0,5e-05]
[1756112826244,5.78941754,111510.0,111500.0,0.00204]
[1756112826478,0.19361374,111510.0,111500.0,0.00529]
[1756112826670,0.50705375,111510.0,111500.0,0.00529]
[1756112827076,0.32769764,111510.0,111500.0,0.00529]
[1756112827294,0.84705375,111510.0,111500.0,0.00529]
[1756112827676,0.66769764,111510.0,111500.0,0.00529]
[1756112827906,0.84705375,111510.0,111500.0,0.00529]
[1756112828033,0.84605375,111510.0,111500.0,0.00529]
[1756112828441,0.50717764,111510.0,111500.0,0.00629]
[1756112828658,0.66665764,111510.0,111500.0,0.00629]
[1756112829090,0.50717764,111510.0,111500.0,0.00629]
[1756112829294,0.05695398,111510.0,111500.0,0.00853215]
[1756112829523,0.05695398,111510.0,111500.0,0.00629]
[1756112829732,0.19009492,111510.0,111500.0,0.00629]
[1756112829977,0.03069492,111510.0,111500.0,0.00629]
[1756112830203,0.36945103,111510.0,111500.0,0.00605]
[1756112830625,0.19009492,111510.0,111500.0,0.00605]
[1756112830840,0.17911708,111510.0,111500.0,0.00705]
[1756112831051,0.37519112,111510.0,111500.0,0.00705]
[1756112831728,0.4021158,111510.0,111500.0,0.00705]
[1756112833384,0.44169115,111510.0,111500.0,0.00705]
[1756112835410,0.26233504,111510.0,111500.0,0.00705]
[1756112835628,0.26185504,111510.0,111500.0,0.00705]
[1756112836284,0.44121115,111510.0,111500.0,0.00705]
[1756112836914,0.4412151,111510.0,111500.0,0.00705]
[1756112837332,0.42453322,111510.0,111500.0,0.00705]
[1756112839751,0.42453322,111510.0,111500.0,0.00205]
[1756112839752,0.76962322,111510.0,111500.0,0.00205]
[1756112839958,0.78630233,111510.0,111500.0,0.00205]
[1756112840763,0.78630233,111510.0,111500.0,0.00105]
[1756112840965,0.78630107,111510.0,111500.0,0.00105]
[1756112841198,0.78730107,111510.0,111500.0,0.00105]
[1756112841613,0.78730107,111510.0,111500.0,5e-05]
[1756112841861,0.85630107,111510.0,111500.0,5e-05]
[1756112842076,0.71210056,111510.0,111500.0,5e-05]
[1756112842286,0.87610056,111510.0,111500.0,5e-05]
[1756112842696,0.87606056,111510.0,111500.0,5e-05]
[1756112843404,0.72954958,111510.0,111500.0,5e-05]
[1756112843642,0.89338958,111510.0,111500.0,5e-05]
[1756112843886,0.86512605,111510.0,111500.0,5e-05]
[1756112845171,0.85967455,111510.0,111500.0,0.00201]
[1756112845384,0.68861114,111510.0,111500.0,0.00201]
[1756112845603,0.16721503,111510.0,111500.0,0.85896104]
[1756112845816,0.42489165,111510.0,111500.0,0.00502]
[1756112846253,0.76693165,111510.0,111500.0,0.00201]
[1756112847299,0.76998165,111510.0,111500.0,0.00201]
[1756112847524,0.76998165,111510.0,111500.0,5e-05]
[1756112847967,0.76998165,111510.0,111500.0,0.00201]
[1756112848380,0.76998165,111510.0,111500.0,5e-05]
[1756112849005,0.60598165,111510.0,111500.0,5e-05]
[1756112849233,0.76701165,111510.0,111500.0,0.00201]
[1756112849436,0.77006165,111510.0,111500.0,5e-05]
[1756112849644,0.77006165,111510.0,111500.0,0.00201]
[1756112849858,0.76469165,111510.0,111500.0,0.00502]
[1756112851146,0.60089165,111510.0,111500.0,0.00502]
[1756112851347,0.58685614,111510.0,111500.0,0.00502]
[1756112851559,0.75053614,111510.0,111500.0,0.00502]
[1756112853673,0.58685614,111510.0,111500.0,0.00502]
[1756112853875,0.75101614,111510.0,111500.0,0.00502]
[1756112854550,0.60089043,111510.0,111500.0,0.00502]
[1756112854806,0.76505043,111510.0,111500.0,0.00502]
[1756112855019,0.60089043,111510.0,111500.0,0.00502]
[1756112855408,0.76485043,111510.0,111500.0,0.00502]